Workbook

Sheet BILAN CAI
A1: Tableau no III-3 : Bilan du contrat d’accueil et d’intégration et des prestations liées
B4: 2007 | C4: 2008 | D4: 2009 | E4: 2010 | F4: 2011 | G4: 2012 | H4: 2013 | I4: 2014 | J4: 2015 | K4: 2016 | L4: 2017 | M4: Evolution
A5: Nombre de personnes auditées | B5: 102003 | C5: 104336 | D5: 99402 | E5: 103548 | F5: 105080 | G5: 104410 | H5: 111973 | I5: 113941 | J5: 112502 | K5: 106293 | L5: 103198 | M5: =K5/J5-1 -> -0.05519012995
A6: Nombre de signataires du contrat | B6: 101217 | C6: 103952 | D6: 97736 | E6: 101353 | F6: 102260 | G6: 101413 | H6: 109011 | I6: 111097 | J6: 110106 | K6: 106282 | L6: 103184 | M6: =K6/J6-1 -> -0.03473016911
A7: Taux de signature du contrat en % des personnes auditées | B7: 99,5 % | C7: 99,6 % | D7: 98,3 % | E7: =E6/E5 -> 0.9788021014 | F7: =F6/F5 -> 0.9731633041 | G7: =G6/G5 -> 0.9712958529 | H7: =H6/H5 -> 0.9735471944 | I7: =I6/I5 -> 0.9750397135 | J7: 0.9787026008 | K7: 0.999 | L7: 0.999 | M7: =K7-J7 -> 0.02029739916
A8: Nombre de personnes convoquées à la FC au 31/12 ayant signé le CAI dans l'année | B8: 99 705 | C8: 102 441 | D8: 95720 | E8: 97252 | F8: 95252 | G8: 99632 | H8: 107467
A9: Nombre de formations linguistiques prescrites | B9: 26121 | C9: 22338 | D9: 21802 | E9: 22043 | F9: 23936 | G9: 24128 | H9: 23589 | I9: 24687 | J9: 27233 | K9: 43235 | L9: 55182 | M9: 0.5875959314
A10: Taux de FL prescrites en % des signataires du contrat | B10: =B9/B6 -> 0.2580692967 | C10: =C9/C6 -> 0.2148876404 | D10: 0.2230703119 | E10: 0.2174873955 | F10: 0.2340700176 | G10: 0.2379182156 | H10: 0.2163910064 | I10: 0.2222112208 | J10: 0.2473343869 | K10: 0.4067951299 | L10: 0.5347922158 | M10: =K10-J10 -> 0.1594607431
A11: Nombre d’inscriptions aux journées d’information « Vivre en France » (module 6 heures) | B11: 38858 | C11: 37660 | D11: 35184 | E11: 36840 | F11: 32334 | G11: 33518 | H11: 32069 | I11: 32535 | J11: 17125 *
A12: Taux de bénéficiaires de la journée d’information « Vivre en France » en % des signataires du contrat (module 6 heures) | B12: =B11/B6 -> 0.3839078416 | C12: =C11/C6 -> 0.362282592 | D12: 0.3599901776 | E12: 0.3634820874 | F12: 0.3161940153 | G12: 0.3305098952 | H12: 0.2941813212 | I12: 0.2928521922 | J12: 0.289 | M12: -1
A13: Vivre et accéder à l'Emploi en France | J13: 50196 | K13: 105552 | L13: 102368 | M13: 1.102797036
A14: Taux de bénéficiaires | J14: =J13/J6 -> 0.4558879625 | K14: =K13/K6 -> 0.9931314804 | L14: =L13/L6 -> 0.9920917972 | M14: =K14-J14 -> 0.5372435179
A15: Nombre de bénéficiaires du bilan de compétences professionnelles | B15: nd | C15: nd | D15: 55618 | E15: 59689 | F15: 55765 | G15: 55914 | H15: 40790 | I15: 32583 | J15: 18569 | K15: 1353 | L15: Prestations supprimées par la loi du 7 mars 2016
A16: Taux de bénéficiaires du bilan de compétences professionnelles en % des signataires du contrat | B16: nd | C16: nd | D16: 62,1 % | E16: =E15/E6 -> 0.5889218869 | F16: =F15/F6 -> 0.5453256405 | G16: =G15/G6 -> 0.5513494325 | H16: =H15/H6 -> 0.374182422 | I16: =I15/I6 -> 0.2932842471 | J16: 0.1686465769 | K16: 0.01273028359
A17: Nombre de personnes dispensées du BC | B17: nd | C17: nd | D17: 33829 | E17: 41664 | F17: 46495 | G17: 45499 | H17: 68221 | I17: =I6-I15 -> 78514 | J17: 91537
A18: Nombre de bénéficiaires du suivi social | B18: 7403 | C18: 4743 | D18: 3829 | E18: 3666 | F18: 3101 | G18: 3097 | H18: 2221 | I18: 1688 | J18: 1353 | K18: 409
A19: Taux de signataires du contrat à qui a été prescrit un suivi social en % | B19: =B18/B6 -> 0.07313988757 | C19: =C18/C6 -> 0.04562682777 | D19: 0.03917696652 | E19: 0.03617061162 | F19: 0.03032466262 | G19: 0.03053849112 | H19: 0.02037409069 | I19: 0.01519392963 | J19: 0.01228815868 | K19: 0.003848252762

Sheet TOP 10 NAT CAI
A1: Tableau no III-2 : Principales caractéristiques des signataires du CAI
Q2: 2014 | R2: 2015 | S2: 2016 | T2: 2017
P3: PRINCIPALES NATIONALITÉS
A4: 2011 | C4: 2012 | E4: 2013 | G4: 2014 | I4: 2015 | K4: 2016 | M4: 2017 | P4: Algérie | Q4: 0.162 | R4: 0.163 | S4: 0.147 | T4: 0.104
A5: PRINCIPALES NATIONALITÉS | C5: PRINCIPALES NATIONALITÉS | E5: PRINCIPALES NATIONALITÉS | G5: PRINCIPALES NATIONALITÉS | I5: PRINCIPALES NATIONALITÉS | K5: PRINCIPALES NATIONALITÉS | M5: PRINCIPALES NATIONALITÉS | P5: Maroc | Q5: 0.119 | R5: 0.119 | S5: 0.113 | T5: 0.11
A6: Algérie | B6: 0.166 | C6: Algérie | D6: 0.1808262963 | E6: Algérie | F6: 0.1689753234 | G6: Algérie | H6: 0.162 | I6: Algérie | J6: 0.163 | K6: Algérie | L6: 0.147 | M6: Maroc | N6: 0.11 | P6: Tunisie | Q6: 0.078 | R6: 0.076 | S6: 0.082 | T6: 0.081
A7: Maroc | B7: 0.133 | C7: Maroc | D7: 0.1307414569 | E7: Maroc | F7: 0.1232180534 | G7: Maroc | H7: 0.119 | I7: Maroc | J7: 0.119 | K7: Maroc | L7: 0.113 | M7: Algérie | N7: 0.104 | P7: Turquie | Q7: 3,,8% | R7: 0.035 | S7: 0.032 | T7: 0.029
A8: Tunisie | B8: 0.074 | C8: Tunisie | D8: 0.07751953279 | E8: Tunisie | F8: 0.07903862031 | G8: Tunisie | H8: 0.078 | I8: Tunisie | J8: 0.076 | K8: Tunisie | L8: 0.082 | M8: Tunisie | N8: 0.081 | P8: rd Congo | Q8: 0.032 | R8: 0.032 | S8: 0.03 | T8: 0.024
A9: Turquie | B9: 0.046 | C9: Turquie | D9: 0.04349498856 | E9: Turquie | F9: 0.04444546372 | G9: Turquie | H9: 3,,8% | I9: Turquie | J9: 0.035 | K9: Turquie | L9: 0.032 | M9: Afghanistan | N9: 0.054 | P9: Mali | Q9: 0.032 | R9: 0.03 | S9: 0.029 | T9: 0.023
A10: Mali | B10: 0.042 | C10: Chine | D10: 0.03314655513 | E10: Chine | F10: 0.04029905513 | G10: Chine | H10: 0.032 | I10: République Démocratique du Congo | J10: 0.032 | K10: République Démocratique du Congo | L10: 0.03 | M10: Soudan | N10: 0.041 | P10: Syrie | R10: 0.019 | S10: 0.029 | T10: 0.04
A11: Chine | B11: 0.032 | C11: République Démocratique du Congo | D11: 0.03104530029 | E11: République Démocratique du Congo | F11: 0.03243739107 | G11: République Démocratique du Congo | H11: 0.032 | I11: Mali | J11: 0.03 | K11: Mali | L11: 0.029 | M11: Syrie | N11: 0.04 | P11: Côte d'Ivoire | Q11: 0.029 | R11: 0.029 | S11: 0.028 | T11: 0.025
A12: Haïti | B12: 0.031 | C12: Mali | D12: 0.03036461211 | E12: Mali | F12: 0.030758646 | G12: Mali | H12: 0.032 | I12: Chine | J12: 0.03 | K12: SYRIE | L12: 0.029 | M12: Turquie | N12: 0.029 | P12: Chine | Q12: 0.032 | R12: 0.03 | S12: 0.028 | T12: 0.024
A13: République Démocratique du Congo | B13: 0.029 | C13: Haïti | D13: 0.02873687949 | E13: Haïti | F13: 0.02994220714 | G13: Côte d'Ivoire | H13: 0.029 | I13: Côte d'Ivoire | J13: 0.029 | K13: Côte d'Ivoire | L13: 0.028 | M13: Sénégal | N13: 0.026 | P13: Sénégal | Q13: 0.027 | R13: 0.026 | S13: 0.027 | T13: 0.026
A14: Sénégal | B14: 0.027 | C14: Sénégal | D14: 0.02658629942 | E14: Sénégal | F14: 0.02757545179 | G14: Sénégal | H14: 0.027 | I14: Sénégal | J14: 0.026 | K14: Chine | L14: 0.028 | M14: Côte d'Ivoire | N14: 0.025 | P14: Russie | Q14: 0.026 | R14: 0.025 | S14: 0.023 | T14: 0.02
A15: Côte d'Ivoire | B15: 0.026 | C15: Côte d'Ivoire | D15: 0.02487964644 | E15: Côte d'Ivoire | F15: 0.02569489038 | G15: Haïti | H15: 0.026 | I15: Russie | J15: 0.025 | K15: Sénégal | L15: 0.027 | M15: République Démocratique du Congo | N15: 0.024 | P15: Sri Lanka | Q15: 0.022 | R15: 0.019 | S15: 0.023
A16: Sri Lanka | B16: 0.026 | C16: Russie | D16: 0.02474153579 | E16: Russie | F16: 0.02428217595 | G16: Russie | H16: 0.026 | I16: Haïti | J16: 0.024 | K16: Russie | L16: 0.023 | M16: Chine | N16: 0.024 | P16: Cameroun | Q16: 0.023 | R16: 0.022 | S16: 0.02 | T16: 0.019
A17: Russie | B17: 0.026 | C17: Cameroun | D17: 0.02440612422 | E17: Cameroun | F17: 0.02259425741 | G17: Cameroun | H17: 0.023 | I17: Cameroun | J17: 0.022 | K17: Sri Lanka | L17: 0.023 | M17: Mali | N17: 0.023 | P17: Bangladesh | S17: 0.019 | T17: 0.018
A18: Cameroun | B18: 0.024 | C18: Sri Lanka | D18: 0.02378462631 | E18: Sri Lanka | F18: 0.01927346115 | G18: Sri Lanka | H18: 0.022 | I18: Sri Lanka | J18: 0.019 | K18: Cameroun | L18: 0.02 | M18: Russie | N18: 0.02 | P18: Soudan | S18: 0.019 | T18: 0.041
A19: Congo | B19: 0.017 | C19: Congo | D19: 0.01609975535 | E19: Congo | F19: 0.01486102192 | G19: Brésil | H19: 0.015 | I19: SYRIE | J19: 0.019 | K19: Bangladesh | L19: 0.019 | M19: Cameroun | N19: 0.019 | P19: Haïti | Q19: 0.026 | R19: 0.024
A20: Madagascar | B20: 0.014 | C20: Kosovo | D20: 0.01402809565 | E20: Brésil | F20: 0.01402623613 | G20: République de Guinée | H20: 0.014 | I20: République de Guinée | J20: 0.017 | K20: Soudan | L20: 0.019 | M20: Bangladesh | N20: 0.018 | P20: Brésil | Q20: 0.015
P21: République de Guinée | Q21: 0.014 | R21: 0.017
A22: Hommes | B22: 0.472 | C22: Hommes | D22: 0.464 | E22: Hommes | F22: 0.467 | G22: Hommes | H22: 0.466 | I22: Hommes | J22: 0.473 | K22: Hommes | L22: 0.493 | M22: Hommes | N22: 0.511 | P22: Afghanistan | T22: 0.054
A23: Femmes | B23: 0.528 | C23: Femmes | D23: 0.536 | E23: Femmes | F23: 0.533 | G23: Femmes | H23: 0.534 | I23: Femmes | J23: 0.527 | K23: Femmes | L23: 0.507 | M23: Femmes | N23: 0.489 | P23: PRINCIPALES CARACTERISTIQUES | Q23: 0
A24: Age moyen | B24: 32 ans | C24: Age moyen | D24: 32 ans | E24: Age moyen | F24: 32 ans | G24: Age moyen | H24: 32 ans | I24: Age moyen | J24: 32.7 | K24: Age moyen | L24: 33 ans | P24: Hommes | Q24: 0.466 | R24: 0.473 | S24: 0.493 | T24: 0.511
M25: Age moyen | N25: 34 ans | P25: Femmes | Q25: 0.534 | R25: 0.527 | S25: 0.507 | T25: 0.489
A26: STATUT | C26: STATUT | E26: STATUT | G26: STATUT | I26: STATUT | K26: STATUT | M26: STATUT | P26: Age moyen | Q26: 32 ans | R26: 32.7 | S26: 33 ans | T26: 34 ans
A27: Familles de Français : 49,5 % dont : | C27: Familles de Français : 50,9 % dont : | E27: Familles de Français : 45,4 % dont : | G27: Familles de Français : 44,7% dont : | I27: Familles de Français : 43,7% dont : | K27: Familles de Français : 42,2% dont : | M27: Familles de Français : 39,9% dont :
A28: Conjoints : 37,5 % | C28: Conjoints : 39,4 % | E28: Conjoints : 34,9 % | G28: Conjoints : 34,7 % | I28: Conjoints : 34,6 % | K28: Conjoints : 33,8 % | M28: Conjoints : 32,3 %
A29: Parents enfant français : 11,1 % | C29: Parents enfant français : 10,5 % | E29: Parents enfant français : 9,7 % | G29: Parents enfant français : 9,2 % | I29: Parents enfant français : 8,4 % | K29: Parents enfant français : 7,8 % | M29: Parents enfant français : 7,4 %
A30: Enfants ou ascendants : 0,9 % | C30: Enfants ou ascendants : 0,9 % | E30: Enfants ou ascendants : 0,8 % | G30: Enfants ou ascendants : 0,7 % | I30: Enfants ou ascendants : 0,7 % | K30: Enfants ou ascendants : 0,6% | M30: Enfants ou ascendants : 0,2%
A31: Bénéficiaires du regroupement familial : 8,7 % | C31: Bénéficiaires du regroupement familial : 8,6 % | E31: Bénéficiaires du regroupement familial : 8,2 % | G31: Bénéficiaires du regroupement familial : 8,3 % | I31: Bénéficiaires du regroupement familial : 7,8 % | K31: Bénéficiaires du regroupement familial : 7,6% | M31: Bénéficiaires du regroupement familial : 7,1%
A32: Réfugiés ou membres de leur famille : 10,6 % | C32: Réfugiés ou membres de leur famille : 10,4 % | E32: Réfugiés ou membres de leur famille : 8,9 % | G32: Réfugiés ou membres de leur famille : 10,8 % | I32: Réfugiés ou membres de leur famille : 12,8 % | K32: Réfugiés ou membres de leur famille : 16,5% | M32: Réfugiés ou membres de leur famille : 28,1%
A33: Liens personnels et familiaux : 14,4 % | C33: Liens personnels et familiaux : 14,0 % | E33: Liens personnels et familiaux : 20,2 % | G33: Liens personnels et familiaux : 15,7 % | I33: Liens personnels et familiaux : 15 % | K33: Liens personnels et familiaux : 13,2% | M33: Liens personnels et familiaux : 10,8%
A34: Travailleurs salariés permanents : 6,2 % | C34: Travailleurs salariés permanents : 4,0 % | E34: Travailleurs salariés permanents : 4,7 % | G34: Travailleurs salariés permanents : 5,9 % | I34: Travailleurs salariés permanents : 6 % | K34: Travailleurs salariés permanents : 6,7% | M34: Travailleurs salariés permanents : 7,6%
A35: Autres : 10,7 % | C35: Autres : 12,1 % | E35: Autres : 12,6 % | G35: Autres : 14,5 % | I35: Autres : 14,7 % | K35: Autres : 13,8% | M35: Autres : 6,5%

Sheet ACQUISITION NATIONALITE
B1: Acquisitions de la nationalité française selon la modalité d’acquisition - Flux de 2007 à 2017
B3: 2007 | C3: 2008 | D3: 2009 | E3: 2010 | F3: 2011 | G3: 2012 | H3: 2013 | I3: 2014 | J3: 2015 | K3: 2016 | L3: 2017 | M3: Evolution
M4: 2016/ 2017
A5: A-Par décret (y.c. effets collectifs) | B5: 69831 | C5: 91918 | D5: 91948 | E5: 94573 | F5: 66273 | G5: 46003 | H5: 52207 | I5: 57610 | J5: 61564 | K5: 68067 | L5: 65654 | M5: -0.03545036508
A6: dont effets collectifs | B6: 22776 | C6: 28876 | D6: 28435 | E6: 29268 | F6: 19794 | G6: 13128 | H6: 14114 | I6: 16669 | J6: 18070 | K6: 19234 | L6: 18022 | M6: -0.06301341375
A7: Naturalisations | B7: 62372 | C7: 84323 | D7: 84730 | E7: 88509 | F7: 62382 | G7: 43067 | H7: 49757 | I7: 55010 | J7: 58858 | K7: 65524 | L7: 63128 | M7: -0.03656675417
A8: Réintégrations | B8: 7459 | C8: 7595 | D8: 7218 | E8: 6064 | F8: 3891 | G8: 2936 | H8: 2450 | I8: 2600 | J8: 2706 | K8: 2543 | L8: 2526 | M8: -0.006685017696
A9: B-Par déclaration (y.c. effets collectifs) | B9: 59331 | C9: 43199 | D9: 41541 | E9: 46233 | F9: 46174 | G9: 47820 | H9: 42989 | I9: 45999 | J9: 50314 | K9: 49011 | L9: 46128 | M9: -0.05882352941
A10: -Par mariage | B10: 30989 | C10: 16213 | D10: 16355 | E10: 21923 | F10: 21664 | G10: 22382 | H10: 17513 | I10: 19725 | J10: 25044 | K10: 20702 | L10: 17476 | M10: -0.1558303546
A11: dont effets collectifs | B11: 1122 | C11: 628 | D11: 700 | E11: 901 | F11: 945 | G11: 857 | H11: 727 | I11: 725 | J11: 891 | K11: 714 | L11: 519 | M11: -0.2731092437
A12: Déclarations anticipées (13-17 ans) | B12: 26945 | C12: 25639 | D12: 23779 | E12: 23068 | F12: 23322 | G12: 24014 | H12: 24099 | I12: 25043 | J12: 24159 | K12: 27100 | L12: 27501 | M12: 0.01479704797
A13: -Autres déclarations | B13: 1397 | C13: 1347 | D13: 1407 | E13: 1242 | F13: 1188 | G13: 1424 | H13: 1377 | I13: 1231 | J13: 1111 | K13: 1209 | L13: 1151 | M13: -0.04797353184
A14: C-Ascendants et fratries | K14: 6 | L14: 544 | M14: -
A15: Acquisitions enregistrées (A+B+C) | B15: 129162 | C15: 135117 | D15: 133489 | E15: 140806 | F15: 112447 | G15: 93823 | H15: 95196 | I15: 103609 | J15: 111878 | K15: 117084 | L15: 112326 | M15: -0.04063749103
A16: D-Acquisitions sans formalité | B16: 2576 | C16: 2335 | D16: 2363 | E16: 2455 | F16: 2122 | G16: 2228 | H16: 2080 | I16: 2004 | J16: 1730 | K16: 2068 | L16: 1948 | M16: -0.0580270793
A17: Ensemble des acquisitions (A+B+C+D) | B17: 131738 | C17: 137452 | D17: 135852 | E17: 143261 | F17: 114569 | G17: 96051 | H17: 97276 | I17: 105613 | J17: 113608 | K17: 119152 | L17: 114274 | M17: -0.04093930442

Sheet TOP 15 NAT
A1: TOP 15 NAT | B1: Top 15 des acquisitions (hors effets collectifs)
C3: 2016 | H3: 2017
A5: Nationalité | B5: Acquisitions par décret | D5: acquisitions par déclaration à raison du mariage | E5: Total | F5: % | H5: Nationalité | I5: Acquisitions par décret | K5: acquisitions par déclaration à raison du mariage | L5: Total | M5: %
B6: Naturalisation | C6: Réintégration | I6: Naturalisation | J6: Réintégration
A7: Algérie | B7: 6572 | C7: 1901 | D7: 3913 | E7: 12386 | F7: =E7/$E$23 -> 0.1799741358 | H7: Algérie | I7: 6335 | J7: 1543 | K7: 3150 | L7: 11028 | M7: =L7/$L$23 -> 0.1707411479
A8: Maroc | B8: 7358 | C8: 13 | D8: 3689 | E8: 11060 | F8: =E8/$E$23 -> 0.160706761 | H8: Maroc | I8: 7176 | J8: 10 | K8: 3097 | L8: 10283 | M8: =L8/$L$23 -> 0.1592066761
A9: Tunisie | B9: 3343 | C9: 8 | D9: 1589 | E9: 4940 | F9: 0.07178041586 | H9: Tunisie | I9: 3082 | J9: 3 | K9: 1415 | L9: 4500 | M9: 0.06967130626
A10: Fédération de Russie | B10: 2065 | D10: 1021 | E10: 3086 | F10: 0.04484096424 | H10: Fédération de Russie | I10: 1886 | K10: 738 | L10: 2624 | M10: 0.04062611281
A11: Cameroun | B11: 1914 | D11: 473 | E11: 2387 | F11: 0.0346841807 | H11: Cameroun | I11: 1785 | K11: 375 | L11: 2160 | M11: 0.033442227
A12: Côte d'Ivoire | B12: 1610 | C12: 87 | D12: 459 | E12: 2156 | F12: 0.03132764708 | H12: Côte d'Ivoire | I12: 1520 | J12: 70 | K12: 413 | L12: 2003 | M12: 0.03101147254
A13: Sénégal | B13: 1349 | C13: 81 | D13: 616 | E13: 2046 | F13: 0.02972929774 | H13: Sénégal | I13: 1338 | J13: 109 | K13: 550 | L13: 1997 | M13: 0.03091857747
A14: Turquie | B14: 1073 | D14: 309 | E14: 1382 | F14: 0.0200810799 | H14: Royaume-Uni | I14: 761 | K14: 743 | L14: 1504 | M14: 0.0232856988
A15: Mali | B15: 1010 | C15: 61 | D15: 201 | E15: 1272 | F15: 0.01848273056 | H15: Congo, République du | I15: 1293 | J15: 53 | K15: 132 | L15: 1478 | M15: 0.02288315348
A16: Congo, République démocratique du | B16: 1190 | D16: 67 | E16: 1257 | F16: 0.01826477383 | H16: Roumanie | I16: 1128 | K16: 171 | L16: 1299 | M16: 0.02011178374
A17: Haïti | B17: 1101 | D17: 123 | E17: 1224 | F17: 0.01778526903 | H17: Mali | I17: 1036 | J17: 51 | K17: 178 | L17: 1265 | M17: 0.01958537832
A18: Madagascar | B18: 588 | C18: 72 | D18: 563 | E18: 1223 | F18: 0.01777073858 | H18: Madagascar | I18: 647 | J18: 54 | K18: 504 | L18: 1205 | M18: 0.01865642757
A19: Roumanie | B19: 970 | D19: 187 | E19: 1157 | F19: 0.01681172898 | H19: Turquie | I19: 926 | K19: 277 | L19: 1203 | M19: 0.01862546254
A20: Portugal | B20: 838 | D20: 235 | E20: 1073 | F20: 0.0155911713 | H20: Portugal | I20: 746 | K20: 213 | L20: 959 | M20: 0.01484772949
A21: Liban | B21: 716 | D21: 355 | E21: 1071 | F21: 0.0155621104 | H21: Haïti | I21: 848 | K21: 101 | L21: 949 | M21: 0.01469290436
A22: Total | B22: 31697 | C22: 2223 | D22: 13800 | E22: 47720 | F22: 0.693393005 | H22: Total | I22: 30507 | J22: 1893 | K22: 12057 | L22: 44457 | M22: 0.6883060583
A23: Total toutes nationalités | B23: 46290 | C23: 2543 | D23: 19988 | E23: =SUM(B23:D23) -> 68821 | F23: 1 | H23: Total toutes nationalités | I23: 45468 | J23: 2164 | K23: 16957 | L23: =SUM(I23:K23) -> 64589 | M23: 1
A26: y compris les acquisitions ascendants et fratries | H26: y compris les acquisitions ascendants et fratries

Sheet sexe NAT
A1: sexe NAT | B1: Répartition par sexe (effets collectifs inclus)
A4: Année | B4: Hommes | C4: Femmes | D4: Total
A5: 2006 | B5: 57673 | C5: 59481 | D5: 117154
A6: 2007 | B6: 49551 | C6: 51533 | D6: 101084
A7: 2008 | B7: 52591 | C7: 55540 | D7: 108131
A8: 2009 | B8: 52291 | C8: 56012 | D8: 108303
A9: 2010 | B9: 56456 | C9: 60040 | D9: 116496
A10: 2011 | B10: 41976 | C10: 45961 | D10: 87937
A11: 2012 | B11: 32441 | C11: 35944 | D11: 68385
A12: 2013 | B12: 33805 | C12: 35915 | D12: 69720
A13: 2014 | B13: 37293 | C13: 40042 | D13: =SUM(B13:C13) -> 77335
A14: 2015 | B14: 41127 | C14: 45481 | D14: =SUM(B14:C14) -> 86608
A15: 2016 | B15: 42377 | C15: 46398 | D15: =SUM(B15:C15) -> 88775
A16: 2017 | B16: 40125 | C16: 43549 | D16: =SUM(B16:C16) -> 83674

Sheet AGE NAT
A1: AGE NAT | B1: Répartition par âge (hors effets collectifs)
A3: Tranche d'âge | B3: 2008 | C3: 2009 | D3: 2010 | E3: 2011 | F3: 2012 | G3: 2013 | H3: 2014 | I3: 2015 | J3: 2016 | K3: 2017
A4: Mineurs | B4: 268 | C4: 229 | D4: 257 | E4: 250 | F4: 243 | G4: 236 | H4: 168 | I4: 121 | J4: 105 | K4: 86
A5: 18-24 ans | B5: 8379 | C5: 8778 | D5: 9488 | E5: 4588 | F5: 2170 | G5: 4277 | H5: 4427 | I5: 4688 | J5: 5522 | K5: 5336
A6: 25-29 ans | B6: 8276 | C6: 9253 | D6: 10974 | E6: 9406 | F6: 7987 | G6: 8661 | H6: 8626 | I6: 9137 | J6: 9505 | K6: 9424
A7: 30-34 ans | B7: 12620 | C7: 13693 | D7: 16834 | E7: 14704 | F7: 12834 | G7: 12495 | H7: 13374 | I7: 14692 | J7: 14245 | K7: 13138
A8: 35-39 ans | B8: 12539 | C8: 12639 | D8: 14610 | E8: 12088 | F8: 10827 | G8: 10803 | H8: 11959 | I8: 13736 | J8: 13528 | K8: 11859
A9: 40-44 ans | B9: 10409 | C9: 10102 | D9: 10763 | E9: 8397 | F9: 6922 | G9: 6695 | H9: 8003 | I9: 9400 | J9: 9275 | K9: 8592
A10: 45-49 ans | B10: 8568 | C10: 8301 | D10: 8122 | E10: 6063 | F10: 4729 | G10: 4432 | H10: 5237 | I10: 6144 | J10: 6078 | K10: 5835
A11: 50-54 ans | B11: 6372 | C11: 5966 | D11: 5679 | E11: 4033 | F11: 3264 | G11: 2812 | H11: 3075 | I11: 3745 | J11: 3768 | K11: 3744
A12: 55-59 ans | B12: 4983 | C12: 4566 | D12: 4192 | E12: 3255 | F12: 2191 | G12: 1763 | H12: 1963 | I12: 2201 | J12: 2275 | K12: 2248
A13: 60-64 ans | B13: 3147 | C13: 2811 | D13: 2737 | E13: 2189 | F13: 1576 | G13: 1194 | H13: 1369 | I13: 1750 | J13: 1985 | K13: 1951
A14: 65-69 ans | B14: 1662 | C14: 1539 | D14: 1420 | E14: 1129 | F14: 861 | G14: 791 | H14: 949 | I14: 1126 | J14: 1373 | K14: 1558
A15: plus de 70 ans | B15: 1404 | C15: 1291 | D15: 1251 | E15: 1096 | F15: 796 | G15: 720 | H15: 791 | I15: 907 | J15: 1168 | K15: 1320
A16: Total | B16: 78627 | C16: 79168 | D16: 86327 | E16: 67198 | F16: 54400 | G16: =SUM(G4:G15) -> 54879 | H16: =SUM(H4:H15) -> 59941 | I16: =SUM(I4:I15) -> 67647 | J16: =SUM(J4:J15) -> 68827 | K16: =SUM(K4:K15) -> 65091

Sheet PT_UE
A1: PT_UE | B1: Répartition entre Communautaires UE et pays tiers (effets collectifs inclus)
A3: Acquisitions de la nationalité française | C3: 2008 | D3: 2009 | E3: 2010 | F3: 2011 | G3: 2012 | H3: 2013 | I3: 2014 | J3: 2015 | K3: 2016 | L3: 2017
A4: Ressortissants de l'EEE | B4: Décret | C4: 5910 | D4: 5483 | E4: 5189 | F4: 4836 | G4: 4399 | H4: 4805 | I4: 4269 | J4: 4677 | K4: 4888 | L4: 5662
B5: Mariage | C5: 2455 | D5: 1711 | E5: 1952 | F5: 1859 | G5: 1983 | H5: 1755 | I5: 1596 | J5: 1990 | K5: 1634 | L5: 2133
B6: Total | C6: 8365 | D6: 7194 | E6: 7141 | F6: 6695 | G6: 6382 | H6: 6560 | I6: 5865 | J6: =J4+J5 -> 6667 | K6: 6522 | L6: 7795
A7: Ressortissants des pays tiers | B7: Décret | C7: 86008 | D7: 86465 | E7: 89384 | F7: 61437 | G7: 41604 | H7: 47402 | I7: 53341 | J7: 56887 | K7: 63179 | L7: 59992
B8: Mariage | C8: 13758 | D8: 14644 | E8: 19971 | F8: 19805 | G8: 20399 | H8: 15758 | I8: 18129 | J8: 23054 | K8: 19074 | L8: 15887
B9: Total | C9: 99766 | D9: 101109 | E9: 109355 | F9: 81242 | G9: 62003 | H9: 63160 | I9: 71470 | J9: =J7+J8 -> 79941 | K9: 82253 | L9: 75879
A10: Ensemble des étrangers | B10: Décret | C10: =C4+C7 -> 91918 | D10: 91948 | E10: 94573 | F10: 66273 | G10: 46003 | H10: 52207 | I10: 57610 | J10: =J4+J7 -> 61564 | K10: 68067 | L10: 65654
B11: Mariage | C11: 16213 | D11: 16355 | E11: 21923 | F11: 21664 | G11: 22382 | H11: 17513 | I11: 19725 | J11: 25044 | K11: 20708 | L11: 18020
B12: Total | C12: 108131 | D12: 108303 | E12: 116496 | F12: 87937 | G12: 68385 | H12: 69720 | I12: 77335 | J12: 86608 | K12: 88775 | L12: 83674

Sheet justice (hidden)
A1: =#REF! ->  | B1: =#REF! -> 
A4: Déclarations enregistrées par le ministère de la Justice | B4: 2008 | C4: 2009 | D4: 2010 | E4: 2011 | F4: 2012 | G4: 2013 | H4: 2014 | I4: 2015 | J4: 2016 | K4: 2017
A5: Déclaration anticipée (13-17 ans) | B5: 25639 | C5: 23779 | D5: 23068 | E5: 23322 | F5: 24014 | G5: 24099 | H5: 25043 | I5: 24159 | J5: 27100
A6: Autres déclarations | B6: 1347 | C6: 1407 | D6: 1242 | E6: 1188 | F6: 1424 | G6: 1377 | H6: 1231 | I6: 1111 | J6: 1209
A7: Acquisitions sans formalités | B7: 2335 | C7: 2363 | D7: 2455 | E7: 2122 | F7: 2228 | G7: 2080 | H7: 2004 | I7: 1730 | J7: 2068
A8: Total | B8: =SUM(B5:B7) -> 29321 | C8: =SUM(C5:C7) -> 27549 | D8: 26765 | E8: 26632 | F8: 27666 | G8: 27556 | H8: =SUM(H5:H7) -> 28278 | I8: =SUM(I5:I7) -> 27000 | J8: =SUM(J5:J7) -> 30377

Sheet NAT UE
A1: Acquisition de nationalité par classe d'âge, sexe et nationalité précédente [migr_acq]
B6: 2012 | C6: 2013 | D6: 2014 | E6: 2015 | F6: 2016 | G6: Evolution
A7: Belgique | B7: 38612 | C7: 34801 | D7: 18726 | E7: 27071 | F7: 31935 | G7: 0.1796756677
A8: Bulgarie | B8: 1750 | C8: 808 | D8: 900 | E8: 1275 | F8: 1626 | G8: 0.2752941176
A9: République tchèque | B9: 1753 | C9: 2243 | D9: 5059 | E9: 2619 | F9: 4561 | G9: 0.741504391
A10: Danemark | B10: 3598 | C10: 1750 | D10: 4747 | E10: 11745 | F10: 15028 | G10: 0.2795232014
A11: Allemagne | B11: 114637 | C11: 111775 | D11: 110610 | E11: 110128 | F11: 112843 | G11: 0.0246531309
A12: Estonie | B12: 1339 | C12: 1330 | D12: 1614 | E12: 898 | F12: 1780 | G12: 0.9821826281
A13: Irlande | B13: 25039 | C13: 24263 | D13: 21104 | E13: 13565 | F13: 10038 | G13: -0.2600073719
A14: Grèce | B14: 20302 | C14: 29462 | D14: 20913 | E14: 13933 | F14: 33210 | G14: 1.383549846
A15: Espagne | B15: 94142 | C15: 225793 | D15: 205880 | E15: 114351 | F15: 150944 | G15: 0.3200059466
A16: France | B16: 96051 | C16: 97276 | D16: 105613 | E16: 113608 | F16: 119152 | G16: 0.04879938033
A17: Croatie | B17: 1081 | C17: 960 | D17: 686 | E17: 1196 | F17: 3973 | G17: 2.321906355
A18: Italie | B18: 65383 | C18: 100712 | D18: 129887 | E18: 178035 | F18: 201591 | G18: 0.1323110624
A19: Chypre | B19: 2314 | C19: 1580 | D19: 2277 | E19: 3322 | F19: 4660 | G19: 0.402769416
A20: Lettonie | B20: 3784 | C20: 3083 | D20: 2141 | E20: 1897 | F20: 1957 | G20: 0.03162888772
A21: Lituanie | B21: 202 | C21: 185 | D21: 183 | E21: 183 | F21: 176 | G21: -0.03825136612
A22: Luxembourg | B22: 4680 | C22: 2564 | D22: 3206 | E22: 3195 | F22: 3315 | G22: 0.03755868545
A23: Hongrie | B23: 18379 | C23: 9178 | D23: 8745 | E23: 4048 | F23: 4315 | G23: 0.06595849802
A24: Malte | B24: 661 | C24: 418 | D24: 314 | E24: 646 | F24: 1495 | G24: 1.314241486
A25: Pays-Bas | B25: 30955 | C25: 25882 | D25: 32675 | E25: 27877 | F25: 28534 | G25: 0.02356781576
A26: Autriche | B26: 7043 | C26: 7354 | D26: 7570 | E26: 8144 | F26: 8530 | G26: 0.04739685658
A27: Pologne | B27: 3792 | C27: 3933 | D27: 4073 | E27: 3974 | F27: 3684 | G27: -0.07297433317
A28: Portugal | B28: 21819 | C28: 24476 | D28: 21124 | E28: 20396 | F28: 25104 | G28: 0.2308295744
A29: Roumanie | B29: : | C29: 2791 | D29: 2426 | E29: 2611 | F29: 4527 | G29: 0.7338184604
A30: Slovénie | B30: 1490 | C30: 1470 | D30: 1057 | E30: 1255 | F30: 1297 | G30: 0.03346613546
A31: Slovaquie | B31: 255 | C31: 207 | D31: 234 | E31: 309 | F31: 484 | G31: 0.5663430421
A32: Finlande | B32: 9087 | C32: 8930 | D32: 8260 | E32: 7921 | F32: 9375 | G32: 0.1835626815
A33: Suède | B33: 50179 | C33: 50167 | D33: 43510 | E33: 49044 | F33: 61294 | G33: 0.2497757116
A34: Royaume-Uni | B34: 193884 | C34: 207496 | D34: 125605 | E34: 118000 | F34: 149372 | G34: 0.2658644068
A35: Total Union européenne (27 pays) | B35: 812211 | C35: 980887 | D35: 889139 | E35: 841246 | F35: 994800 | G35: 0.1825316257
